[Event "Titled Tuesday Blitz August 09 Early 2022"]
[White "Omariev, Maksim"]
[Black "Srihari L R"]
[WhiteFideId "4193423"]
[BlackFideId "46617116"]
[WhiteElo "2524"]
[BlackElo "2170"]
[Result "0-1"]
[Round "02"]
[TimeControl "180+1"]
[Date "2022.08.09"]
[WhiteClock "0:00:01"]
[BlackClock "0:00:07"]

1. g4 {[%clk 0:03:00]}  d5 {[%clk 0:02:58]} 2. Bg2 {[%clk 0:03:01]}  c6 {[%clk 0:02:58]} 3. h3 {[%clk 0:03:00]}  h5 {[%clk 0:02:57]} 4. g5 {[%clk 0:02:54]}  e5 {[%clk 0:02:55]} 5. d4 {[%clk 0:02:55]}  e4 {[%clk 0:02:53]} 6. c4 {[%clk 0:02:55]}  Bb4+ {[%clk 0:02:43]} 7. Nc3 {[%clk 0:02:55]}  Ne7 {[%clk 0:02:42]} 8. Qb3 {[%clk 0:02:54]}  a5 {[%clk 0:02:40]} 9. a3 {[%clk 0:02:53]}  dxc4 {[%clk 0:02:35]} 10. Qc2 {[%clk 0:02:51]}  Bxc3+ {[%clk 0:02:32]} 11. Qxc3 {[%clk 0:02:49]}  Bf5 {[%clk 0:02:30]} 12. Qxc4 {[%clk 0:02:42]}  Nd7 {[%clk 0:02:28]} 13. Be3 {[%clk 0:01:50]}  h4 {[%clk 0:02:22]} 14. Qc2 {[%clk 0:01:45]}  Nb6 {[%clk 0:02:02]} 15. Bxe4 {[%clk 0:01:44]}  Bxe4 {[%clk 0:01:59]} 16. Qxe4 {[%clk 0:01:45]}  Qd5 {[%clk 0:02:00]} 17. Qxd5 {[%clk 0:01:40]}  Nexd5 {[%clk 0:01:59]} 18. Bd2 {[%clk 0:01:26]}  a4 {[%clk 0:01:52]} 19. e4 {[%clk 0:01:20]}  Nc7 {[%clk 0:01:51]} 20. Rc1 {[%clk 0:01:10]}  O-O-O {[%clk 0:01:30]} 21. Ne2 {[%clk 0:01:09]}  Rhe8 {[%clk 0:01:27]} 22. f3 {[%clk 0:01:09]}  Kb8 {[%clk 0:01:21]} 23. Rg1 {[%clk 0:01:04]}  Ne6 {[%clk 0:01:17]} 24. Be3 {[%clk 0:00:56]}  f5 {[%clk 0:01:05]} 25. gxf6 {[%clk 0:00:51]}  gxf6 {[%clk 0:01:05]} 26. Rg4 {[%clk 0:00:52]}  f5 {[%clk 0:00:52]} 27. Rxh4 {[%clk 0:00:52]}  fxe4 {[%clk 0:00:52]} 28. fxe4 {[%clk 0:00:53]}  Rg8 {[%clk 0:00:36]} 29. Kd2 {[%clk 0:00:47]}  Nc7 {[%clk 0:00:25]} 30. Kd3 {[%clk 0:00:41]}  Nd7 {[%clk 0:00:21]} 31. Bf4 {[%clk 0:00:37]}  Kc8 {[%clk 0:00:21]} 32. Rh7 {[%clk 0:00:37]}  Ne6 {[%clk 0:00:19]} 33. Bg3 {[%clk 0:00:21]}  Nxd4 {[%clk 0:00:13]} 34. Bh4 {[%clk 0:00:16]}  Nxe2 {[%clk 0:00:11]} 35. Kxe2 {[%clk 0:00:14]}  Rde8 {[%clk 0:00:11]} 36. Ke3 {[%clk 0:00:11]}  Rg6 {[%clk 0:00:10]} 37. Rf1 {[%clk 0:00:08]}  Rge6 {[%clk 0:00:09]} 38. Rf4 {[%clk 0:00:07]}  Nc5 {[%clk 0:00:09]} 39. Kf3 {[%clk 0:00:03]}  Rxe4 {[%clk 0:00:08]} 40. Rxe4 {[%clk 0:00:03]}  Nxe4 {[%clk 0:00:08]} 41. Bf2 {[%clk 0:00:01]}  Ng5+ {[%clk 0:00:07]} 0-1


[Site "https://www.chess.com"]

[Event "Titled Tuesday Blitz August 09 Early 2022"]
[White "Omelja, Artem"]
[Black "Wagh Suyog"]
[WhiteFideId "14119846"]
[BlackFideId "25071688"]
[WhiteElo "2382"]
[BlackElo "2130"]
[Result "1-0"]
[Round "02"]
[TimeControl "180+1"]
[Date "2022.08.09"]
[WhiteClock "0:00:03"]
[BlackClock "0:00:45"]

1. d4 {[%clk 0:03:00]}  Nf6 {[%clk 0:02:59]} 2. c4 {[%clk 0:02:56]}  g6 {[%clk 0:03:00]} 3. Nc3 {[%clk 0:02:56]}  Bg7 {[%clk 0:03:00]} 4. e4 {[%clk 0:02:56]}  d6 {[%clk 0:03:00]} 5. f3 {[%clk 0:02:56]}  O-O {[%clk 0:03:01]} 6. Be3 {[%clk 0:02:57]}  c5 {[%clk 0:02:59]} 7. Nge2 {[%clk 0:02:57]}  Nc6 {[%clk 0:02:56]} 8. d5 {[%clk 0:02:57]}  Ne5 {[%clk 0:02:55]} 9. Ng3 {[%clk 0:02:57]}  h5 {[%clk 0:02:52]} 10. Be2 {[%clk 0:02:58]}  h4 {[%clk 0:02:52]} 11. Nf1 {[%clk 0:02:58]}  h3 {[%clk 0:02:52]} 12. g3 {[%clk 0:02:37]}  a6 {[%clk 0:02:51]} 13. Bf2 {[%clk 0:02:32]}  b5 {[%clk 0:02:49]} 14. cxb5 {[%clk 0:02:30]}  axb5 {[%clk 0:02:50]} 15. Bxb5 {[%clk 0:02:30]}  c4 {[%clk 0:02:43]} 16. Ne3 {[%clk 0:02:08]}  Nd3+ {[%clk 0:02:39]} 17. Ke2 {[%clk 0:02:05]}  Nxb2 {[%clk 0:02:38]} 18. Qc2 {[%clk 0:02:05]}  Nd3 {[%clk 0:02:34]} 19. Bxc4 {[%clk 0:02:05]}  Nxf2 {[%clk 0:02:32]} 20. Kxf2 {[%clk 0:02:05]}  Bd7 {[%clk 0:02:25]} 21. Rab1 {[%clk 0:01:56]}  Qc7 {[%clk 0:02:24]} 22. Rhc1 {[%clk 0:01:54]}  Rfc8 {[%clk 0:02:24]} 23. Ne2 {[%clk 0:01:45]}  Qa7 {[%clk 0:02:19]} 24. Qd2 {[%clk 0:01:36]}  Bh6 {[%clk 0:02:18]} 25. Qd4 {[%clk 0:01:25]}  Qa3 {[%clk 0:02:13]} 26. Rc3 {[%clk 0:01:21]}  Qa5 {[%clk 0:02:12]} 27. Bb3 {[%clk 0:01:19]}  Bb5 {[%clk 0:02:06]} 28. Rbc1 {[%clk 0:01:17]}  Rxc3 {[%clk 0:02:00]} 29. Qxc3 {[%clk 0:01:15]}  Qa7 {[%clk 0:02:00]} 30. Qd4 {[%clk 0:01:12]}  Qb7 {[%clk 0:01:54]} 31. Nf4 {[%clk 0:01:09]}  Nd7 {[%clk 0:01:51]} 32. Nxh3 {[%clk 0:01:01]}  Ne5 {[%clk 0:01:51]} 33. Rc2 {[%clk 0:01:00]}  Bg7 {[%clk 0:01:43]} 34. Qd2 {[%clk 0:00:50]}  Qb6 {[%clk 0:01:42]} 35. Kg2 {[%clk 0:00:48]}  Nd3 {[%clk 0:01:24]} 36. Nf2 {[%clk 0:00:42]}  Nc5 {[%clk 0:01:21]} 37. Rc1 {[%clk 0:00:28]}  Bh6 {[%clk 0:01:20]} 38. f4 {[%clk 0:00:26]}  Ra3 {[%clk 0:01:14]} 39. Rb1 {[%clk 0:00:15]}  Qa6 {[%clk 0:01:12]} 40. e5 {[%clk 0:00:10]}  dxe5 {[%clk 0:01:10]} 41. fxe5 {[%clk 0:00:11]}  Qa7 {[%clk 0:00:59]} 42. Nfg4 {[%clk 0:00:06]}  Ne4 {[%clk 0:00:56]} 43. Qc2 {[%clk 0:00:01]}  Bxe3 {[%clk 0:00:55]} 44. Qxe4 {[%clk 0:00:01]}  Bg5 {[%clk 0:00:54]} 45. d6 {[%clk 0:00:01]}  Qa6 {[%clk 0:00:48]} 46. Qxg6+ {[%clk 0:00:01]}  Kh8 {[%clk 0:00:47]} 47. Qxf7 {[%clk 0:00:01]}  Bc6+ {[%clk 0:00:47]} 48. Kh3 {[%clk 0:00:01]}  Rxb3 {[%clk 0:00:47]} 49. axb3 {[%clk 0:00:01]}  exd6 {[%clk 0:00:45]} 50. Qf8+ {[%clk 0:00:01]}  Kh7 {[%clk 0:00:45]} 51. exd6 {[%clk 0:00:02]}  Bd7 {[%clk 0:00:45]} 52. Qf7+ {[%clk 0:00:02]}  Kh8 {[%clk 0:00:44]} 53. Qxd7 {[%clk 0:00:03]}  Qd3 {[%clk 0:00:45]} 54. Qe8+ {[%clk 0:00:03]}  Kh7 {[%clk 0:00:45]} 55. Qh5+ {[%clk 0:00:03]}  Bh6 {[%clk 0:00:45]} 56. Qxh6+ {[%clk 0:00:04]}  Kg8 {[%clk 0:00:45]} 57. Re1 {[%clk 0:00:04]}  Qxd6 {[%clk 0:00:45]} 58. Qxd6 {[%clk 0:00:03]} 1-0


[Site "https://www.chess.com"]

[Event "Titled Tuesday Blitz August 09 Early 2022"]
[White "Onslow, Alfie"]
[Black "Namitbir Singh Walia"]
[WhiteFideId "436976"]
[BlackFideId "35071068"]
[WhiteElo "1885"]
[BlackElo "1664"]
[Result "0-1"]
[Round "02"]
[TimeControl "180+1"]
[Date "2022.08.09"]
[WhiteClock "0:00:01"]
[BlackClock "0:00:20"]

1. e4 {[%clk 0:03:00]}  c5 {[%clk 0:02:59]} 2. Nc3 {[%clk 0:03:00]}  Nc6 {[%clk 0:03:00]} 3. Bb5 {[%clk 0:03:00]}  Nd4 {[%clk 0:02:59]} 4. Nf3 {[%clk 0:03:00]}  Nxb5 {[%clk 0:02:59]} 5. Nxb5 {[%clk 0:03:01]}  g6 {[%clk 0:02:59]} 6. d4 {[%clk 0:03:01]}  cxd4 {[%clk 0:02:59]} 7. Qxd4 {[%clk 0:03:02]}  f6 {[%clk 0:02:41]} 8. Qc3 {[%clk 0:03:01]}  Kf7 {[%clk 0:02:35]} 9. h4 {[%clk 0:02:41]}  h5 {[%clk 0:02:22]} 10. Ng5+ {[%clk 0:02:28]}  fxg5 {[%clk 0:02:18]} 11. Qf3+ {[%clk 0:02:07]}  Kg7 {[%clk 0:02:14]} 12. hxg5 {[%clk 0:02:00]}  Qa5+ {[%clk 0:02:14]} 13. Bd2 {[%clk 0:01:56]}  Qxb5 {[%clk 0:02:12]} 14. Bc3+ {[%clk 0:01:57]}  e5 {[%clk 0:02:12]} 15. O-O-O {[%clk 0:01:56]}  Bb4 {[%clk 0:02:07]} 16. Rd5 {[%clk 0:01:55]}  Qxd5 {[%clk 0:01:52]} 17. exd5 {[%clk 0:01:52]}  Bxc3 {[%clk 0:01:52]} 18. Qxc3 {[%clk 0:01:50]}  Rh7 {[%clk 0:01:31]} 19. Qxe5+ {[%clk 0:01:47]}  Kf8 {[%clk 0:01:32]} 20. d6 {[%clk 0:01:43]}  Rf7 {[%clk 0:01:28]} 21. f4 {[%clk 0:01:38]}  b6 {[%clk 0:01:24]} 22. Re1 {[%clk 0:01:12]}  Bb7 {[%clk 0:01:20]} 23. g3 {[%clk 0:01:13]}  Rc8 {[%clk 0:01:16]} 24. b3 {[%clk 0:01:07]}  Rf5 {[%clk 0:01:12]} 25. Qd4 {[%clk 0:00:32]}  Rfc5 {[%clk 0:01:07]} 26. c4 {[%clk 0:00:31]}  b5 {[%clk 0:01:07]} 27. Kb1 {[%clk 0:00:12]}  bxc4 {[%clk 0:01:06]} 28. b4 {[%clk 0:00:07]}  Rb5 {[%clk 0:00:59]} 29. Qh8 {[%clk 0:00:02]}  Bd5 {[%clk 0:00:19]} 30. Re7 {[%clk 0:00:02]}  Bf7 {[%clk 0:00:20]} 31. Rxf7+ {[%clk 0:00:01]}  Kxf7 {[%clk 0:00:21]} 32. Qh7+ {[%clk 0:00:02]}  Ke6 {[%clk 0:00:21]} 33. Qg7 {[%clk 0:00:02]}  Kxd6 {[%clk 0:00:21]} 34. Qd4+ {[%clk 0:00:01]}  Rd5 {[%clk 0:00:20]} 35. Qxa7 {[%clk 0:00:01]}  c3 {[%clk 0:00:20]} 0-1


[Site "https://www.chess.com"]

[Event "Titled Tuesday Blitz August 09 Early 2022"]
[White "Perez Leiva, Jerzy Jesus"]
[Black "De Souza, Cristiano Gomes"]
[WhiteFideId "3524337"]
[BlackFideId "2151758"]
[WhiteElo "2287"]
[BlackElo "2068"]
[Result "1-0"]
[Round "02"]
[TimeControl "180+1"]
[Date "2022.08.09"]
[WhiteClock "0:00:18"]
[BlackClock "0:00:07"]

1. e4 {[%clk 0:03:00]}  c5 {[%clk 0:02:59]} 2. Nf3 {[%clk 0:03:00]}  d6 {[%clk 0:02:58]} 3. Bb5+ {[%clk 0:03:00]}  Bd7 {[%clk 0:02:58]} 4. c4 {[%clk 0:02:52]}  g6 {[%clk 0:02:54]} 5. Nc3 {[%clk 0:02:49]}  Bg7 {[%clk 0:02:53]} 6. d4 {[%clk 0:02:49]}  cxd4 {[%clk 0:02:51]} 7. Nxd4 {[%clk 0:02:50]}  Nc6 {[%clk 0:02:51]} 8. Be3 {[%clk 0:02:49]}  Nf6 {[%clk 0:02:49]} 9. O-O {[%clk 0:02:48]}  O-O {[%clk 0:02:49]} 10. f3 {[%clk 0:02:45]}  a6 {[%clk 0:02:43]} 11. Bxc6 {[%clk 0:02:44]}  bxc6 {[%clk 0:02:43]} 12. c5 {[%clk 0:02:45]}  Rb8 {[%clk 0:02:35]} 13. Qc2 {[%clk 0:02:36]}  dxc5 {[%clk 0:02:30]} 14. Nb3 {[%clk 0:02:36]}  c4 {[%clk 0:02:30]} 15. Nc5 {[%clk 0:02:30]}  Qc8 {[%clk 0:02:26]} 16. Rad1 {[%clk 0:02:20]}  Be6 {[%clk 0:02:25]} 17. Rf2 {[%clk 0:02:03]}  h5 {[%clk 0:02:09]} 18. Rfd2 {[%clk 0:01:42]}  Kh7 {[%clk 0:02:04]} 19. Qc1 {[%clk 0:01:40]}  Rb5 {[%clk 0:01:50]} 20. Nxb5 {[%clk 0:01:39]}  axb5 {[%clk 0:01:48]} 21. b3 {[%clk 0:01:37]}  cxb3 {[%clk 0:01:47]} 22. axb3 {[%clk 0:01:36]}  Ng8 {[%clk 0:01:43]} 23. Bd4 {[%clk 0:01:35]}  Bh6 {[%clk 0:01:32]} 24. Bb2 {[%clk 0:01:28]}  Bxd2 {[%clk 0:01:31]} 25. Qxd2 {[%clk 0:01:28]}  Nf6 {[%clk 0:01:28]} 26. Qg5 {[%clk 0:01:21]}  Qb8 {[%clk 0:01:08]} 27. Bc1 {[%clk 0:00:56]}  Qa7 {[%clk 0:00:53]} 28. b4 {[%clk 0:00:52]}  Qa2 {[%clk 0:00:46]} 29. Qh6+ {[%clk 0:00:36]}  Kg8 {[%clk 0:00:43]} 30. Be3 {[%clk 0:00:35]}  Qc4 {[%clk 0:00:21]} 31. h4 {[%clk 0:00:29]}  Ra8 {[%clk 0:00:16]} 32. Kh2 {[%clk 0:00:26]}  Nh7 {[%clk 0:00:11]} 33. Bd4 {[%clk 0:00:25]}  Nf6 {[%clk 0:00:10]} 34. Bb2 {[%clk 0:00:20]}  Qxb4 {[%clk 0:00:09]} 35. Nxe6 {[%clk 0:00:20]}  fxe6 {[%clk 0:00:08]} 36. Qxg6+ {[%clk 0:00:20]}  Kf8 {[%clk 0:00:08]} 37. Bxf6 {[%clk 0:00:17]}  exf6 {[%clk 0:00:07]} 38. Rd7 {[%clk 0:00:18]} 1-0


[Site "https://www.chess.com"]

[Event "Titled Tuesday Blitz August 09 Early 2022"]
[White "Radu, David Cr."]
[Black "Chernomordik, Pavel"]
[WhiteFideId "1265717"]
[BlackFideId "2804530"]
[WhiteElo "1678"]
[BlackElo "2217"]
[Result "0-1"]
[Round "02"]
[TimeControl "180+1"]
[Date "2022.08.09"]
[WhiteClock "0:00:01"]
[BlackClock "0:00:04"]

1. Nf3 {[%clk 0:03:00]}  g6 {[%clk 0:03:00]} 2. c4 {[%clk 0:02:58]}  Bg7 {[%clk 0:03:00]} 3. Nc3 {[%clk 0:02:59]}  e5 {[%clk 0:02:59]} 4. b3 {[%clk 0:02:57]}  Nc6 {[%clk 0:02:59]} 5. Bb2 {[%clk 0:02:52]}  d6 {[%clk 0:02:59]} 6. d3 {[%clk 0:02:51]}  Nge7 {[%clk 0:02:54]} 7. g3 {[%clk 0:02:50]}  Bg4 {[%clk 0:02:51]} 8. Bg2 {[%clk 0:02:50]}  Qd7 {[%clk 0:02:51]} 9. h3 {[%clk 0:02:50]}  Bf5 {[%clk 0:02:49]} 10. Nd5 {[%clk 0:02:36]}  h6 {[%clk 0:02:44]} 11. h4 {[%clk 0:02:20]}  O-O {[%clk 0:02:38]} 12. O-O {[%clk 0:02:16]}  Nxd5 {[%clk 0:02:29]} 13. cxd5 {[%clk 0:02:17]}  Ne7 {[%clk 0:02:29]} 14. e4 {[%clk 0:02:15]}  Bh3 {[%clk 0:02:28]} 15. Rc1 {[%clk 0:02:15]}  Bxg2 {[%clk 0:02:27]} 16. Kxg2 {[%clk 0:02:16]}  f5 {[%clk 0:02:26]} 17. Nh2 {[%clk 0:02:05]}  c6 {[%clk 0:02:14]} 18. dxc6 {[%clk 0:01:49]}  Nxc6 {[%clk 0:02:13]} 19. b4 {[%clk 0:01:46]}  d5 {[%clk 0:02:06]} 20. b5 {[%clk 0:01:33]}  Ne7 {[%clk 0:02:04]} 21. Qb3 {[%clk 0:01:29]}  Kh7 {[%clk 0:02:02]} 22. Ba3 {[%clk 0:01:12]}  dxe4 {[%clk 0:01:46]} 23. dxe4 {[%clk 0:01:11]}  fxe4 {[%clk 0:01:21]} 24. Bxe7 {[%clk 0:01:10]}  Qxe7 {[%clk 0:01:19]} 25. Ng4 {[%clk 0:01:10]}  h5 {[%clk 0:01:00]} 26. Ne3 {[%clk 0:01:10]}  Rf3 {[%clk 0:00:53]} 27. Qd5 {[%clk 0:01:03]}  Raf8 {[%clk 0:00:44]} 28. Qxe4 {[%clk 0:01:00]}  Qf7 {[%clk 0:00:43]} 29. Rc2 {[%clk 0:00:51]}  Bh6 {[%clk 0:00:40]} 30. Nd5 {[%clk 0:00:49]}  Kh8 {[%clk 0:00:29]} 31. Qxe5+ {[%clk 0:00:43]}  Bg7 {[%clk 0:00:28]} 32. Qe4 {[%clk 0:00:42]}  Ra3 {[%clk 0:00:23]} 33. Nf4 {[%clk 0:00:29]}  Kh7 {[%clk 0:00:18]} 34. Nxh5 {[%clk 0:00:26]}  Re8 {[%clk 0:00:18]} 35. Qf4 {[%clk 0:00:04]}  Qd5+ {[%clk 0:00:13]} 36. Kh2 {[%clk 0:00:04]}  Qxh5 {[%clk 0:00:11]} 37. Rc7 {[%clk 0:00:04]}  Rg8 {[%clk 0:00:11]} 38. Re1 {[%clk 0:00:03]}  Rxa2 {[%clk 0:00:10]} 39. Ree7 {[%clk 0:00:02]}  Qh6 {[%clk 0:00:06]} 40. Qf7 {[%clk 0:00:01]}  g5 {[%clk 0:00:04]} 0-1


[Site "https://www.chess.com"]

[Event "Titled Tuesday Blitz August 09 Early 2022"]
[White "Rangel, Daniel"]
[Black "Rostomyan, Mikayel"]
[WhiteFideId "2124475"]
[BlackFideId "13313754"]
[WhiteElo "2225"]
[BlackElo "1426"]
[Result "0-1"]
[Round "02"]
[TimeControl "180+1"]
[Date "2022.08.09"]
[WhiteClock "0:00:14"]
[BlackClock "0:00:58"]

1. c4 {[%clk 0:02:59]}  e5 {[%clk 0:02:57]} 2. g3 {[%clk 0:02:58]}  Nf6 {[%clk 0:02:56]} 3. Bg2 {[%clk 0:02:57]}  c6 {[%clk 0:02:57]} 4. Nf3 {[%clk 0:02:57]}  e4 {[%clk 0:02:55]} 5. Nd4 {[%clk 0:02:57]}  d5 {[%clk 0:02:56]} 6. cxd5 {[%clk 0:02:58]}  cxd5 {[%clk 0:02:57]} 7. O-O {[%clk 0:02:58]}  Nc6 {[%clk 0:02:56]} 8. Nxc6 {[%clk 0:02:57]}  bxc6 {[%clk 0:02:57]} 9. d3 {[%clk 0:02:57]}  exd3 {[%clk 0:02:56]} 10. Qxd3 {[%clk 0:02:54]}  Be7 {[%clk 0:02:56]} 11. Nc3 {[%clk 0:02:53]}  O-O {[%clk 0:02:56]} 12. e4 {[%clk 0:02:51]}  d4 {[%clk 0:02:53]} 13. Na4 {[%clk 0:02:45]}  c5 {[%clk 0:02:45]} 14. Bg5 {[%clk 0:02:32]}  Bb7 {[%clk 0:02:39]} 15. Bxf6 {[%clk 0:02:28]}  Bxf6 {[%clk 0:02:36]} 16. Nxc5 {[%clk 0:02:26]}  Bc6 {[%clk 0:02:26]} 17. f4 {[%clk 0:02:18]}  Be7 {[%clk 0:02:25]} 18. Rfc1 {[%clk 0:02:14]}  Qb6 {[%clk 0:02:24]} 19. Qxd4 {[%clk 0:02:06]}  Rfd8 {[%clk 0:02:23]} 20. Qf2 {[%clk 0:02:05]}  Rac8 {[%clk 0:02:15]} 21. Nb3 {[%clk 0:02:04]}  Qb7 {[%clk 0:02:14]} 22. e5 {[%clk 0:01:48]}  Bxg2 {[%clk 0:02:03]} 23. Qxg2 {[%clk 0:01:49]}  Qb6+ {[%clk 0:02:03]} 24. Kh1 {[%clk 0:01:48]}  a5 {[%clk 0:02:01]} 25. Rxc8 {[%clk 0:01:39]}  Rxc8 {[%clk 0:02:00]} 26. Rd1 {[%clk 0:01:39]}  a4 {[%clk 0:01:58]} 27. Nc1 {[%clk 0:01:20]}  Qe3 {[%clk 0:01:37]} 28. Nd3 {[%clk 0:01:13]}  Rd8 {[%clk 0:01:34]} 29. Qd2 {[%clk 0:01:02]}  Qf3+ {[%clk 0:01:27]} 30. Kg1 {[%clk 0:01:01]}  Bc5+ {[%clk 0:01:21]} 31. Nxc5 {[%clk 0:00:59]}  Rxd2 {[%clk 0:01:20]} 32. Rxd2 {[%clk 0:00:59]}  Qe3+ {[%clk 0:01:20]} 33. Rf2 {[%clk 0:00:57]}  Qxc5 {[%clk 0:01:20]} 34. a3 {[%clk 0:00:54]}  g5 {[%clk 0:01:17]} 35. Kg2 {[%clk 0:00:37]}  gxf4 {[%clk 0:01:16]} 36. gxf4 {[%clk 0:00:36]}  Kg7 {[%clk 0:01:16]} 37. Kf3 {[%clk 0:00:36]}  Qd5+ {[%clk 0:01:10]} 38. Kg4 {[%clk 0:00:35]}  Qd4 {[%clk 0:01:05]} 39. Rg2 {[%clk 0:00:28]}  Kg6 {[%clk 0:01:04]} 40. Kf3+ {[%clk 0:00:21]}  Kf5 {[%clk 0:01:02]} 41. Rg5+ {[%clk 0:00:22]}  Ke6 {[%clk 0:01:02]} 42. Rg2 {[%clk 0:00:20]}  h6 {[%clk 0:01:02]} 43. Kg4 {[%clk 0:00:16]}  Qd1+ {[%clk 0:01:00]} 44. Kg3 {[%clk 0:00:14]}  Kf5 {[%clk 0:01:00]} 45. Rf2 {[%clk 0:00:14]}  Qg4# {[%clk 0:00:58]} 0-1


[Site "https://www.chess.com"]

[Event "Titled Tuesday Blitz August 09 Early 2022"]
[White "Rose, Felix"]
[Black "Seemann, Jakub"]
[WhiteFideId "5105722"]
[BlackFideId "21874697"]
[WhiteElo "2039"]
[BlackElo "2064"]
[Result "0-1"]
[Round "02"]
[TimeControl "180+1"]
[Date "2022.08.09"]
[WhiteClock "0:02:34"]
[BlackClock "0:02:44"]

1. e4 {[%clk 0:02:59]}  c6 {[%clk 0:02:54]} 2. Nf3 {[%clk 0:02:58]}  d5 {[%clk 0:02:54]} 3. d3 {[%clk 0:02:59]}  Nf6 {[%clk 0:02:53]} 4. e5 {[%clk 0:02:57]}  Nfd7 {[%clk 0:02:53]} 5. h3 {[%clk 0:02:54]}  e6 {[%clk 0:02:52]} 6. Be2 {[%clk 0:02:52]}  c5 {[%clk 0:02:53]} 7. O-O {[%clk 0:02:52]}  Nc6 {[%clk 0:02:53]} 8. Bf4 {[%clk 0:02:51]}  Qc7 {[%clk 0:02:52]} 9. c3 {[%clk 0:02:51]}  Ncxe5 {[%clk 0:02:46]} 10. Nxe5 {[%clk 0:02:46]}  Nxe5 {[%clk 0:02:46]} 11. d4 {[%clk 0:02:39]}  Nf3+ {[%clk 0:02:46]} 12. Bxf3 {[%clk 0:02:39]}  Qxf4 {[%clk 0:02:47]} 13. dxc5 {[%clk 0:02:36]}  Bxc5 {[%clk 0:02:48]} 14. b4 {[%clk 0:02:36]}  Bb6 {[%clk 0:02:45]} 15. g3 {[%clk 0:02:34]}  Qxg3+ {[%clk 0:02:44]} 0-1


[Site "https://www.chess.com"]

[Event "Titled Tuesday Blitz August 09 Early 2022"]
[White "Safin, Robert"]
[Black "Fiorito, Joaquin"]
[WhiteFideId "34189120"]
[BlackFideId "180173"]
[WhiteElo "2241"]
[BlackElo "1758"]
[Result "0-1"]
[Round "02"]
[TimeControl "180+1"]
[Date "2022.08.09"]
[WhiteClock "0:00:14"]
[BlackClock "0:01:10"]

1. d4 {[%clk 0:02:59]}  d5 {[%clk 0:03:00]} 2. c4 {[%clk 0:03:00]}  c6 {[%clk 0:03:00]} 3. cxd5 {[%clk 0:03:00]}  cxd5 {[%clk 0:03:00]} 4. Bg5 {[%clk 0:03:00]}  Nc6 {[%clk 0:02:58]} 5. Nc3 {[%clk 0:03:00]}  f6 {[%clk 0:02:55]} 6. Bd2 {[%clk 0:03:00]}  e6 {[%clk 0:02:54]} 7. e3 {[%clk 0:02:58]}  Bd6 {[%clk 0:02:54]} 8. Nge2 {[%clk 0:02:50]}  Nge7 {[%clk 0:02:54]} 9. Ng3 {[%clk 0:02:47]}  O-O {[%clk 0:02:53]} 10. Bd3 {[%clk 0:02:48]}  a6 {[%clk 0:02:48]} 11. a3 {[%clk 0:02:48]}  b5 {[%clk 0:02:48]} 12. Qh5 {[%clk 0:02:48]}  g6 {[%clk 0:02:48]} 13. Qh6 {[%clk 0:02:45]}  e5 {[%clk 0:02:33]} 14. Nh5 {[%clk 0:02:10]}  Rf7 {[%clk 0:02:22]} 15. Nxd5 {[%clk 0:01:55]}  Nxd5 {[%clk 0:01:56]} 16. Bxg6 {[%clk 0:01:55]}  hxg6 {[%clk 0:01:57]} 17. Qxg6+ {[%clk 0:01:56]}  Kf8 {[%clk 0:01:58]} 18. Rc1 {[%clk 0:01:31]}  Bb7 {[%clk 0:01:55]} 19. e4 {[%clk 0:01:24]}  Nf4 {[%clk 0:01:52]} 20. Bxf4 {[%clk 0:01:23]}  exf4 {[%clk 0:01:53]} 21. d5 {[%clk 0:01:11]}  Nd4 {[%clk 0:01:51]} 22. Rd1 {[%clk 0:01:11]}  Be5 {[%clk 0:01:43]} 23. Rxd4 {[%clk 0:01:03]}  Bxd4 {[%clk 0:01:42]} 24. Nxf4 {[%clk 0:01:04]}  Bc8 {[%clk 0:01:38]} 25. Qh6+ {[%clk 0:00:45]}  Kg8 {[%clk 0:01:26]} 26. Ng6 {[%clk 0:00:32]}  Rh7 {[%clk 0:01:26]} 27. Qd2 {[%clk 0:00:30]}  Qe8 {[%clk 0:01:18]} 28. Qxd4 {[%clk 0:00:25]}  Qxg6 {[%clk 0:01:18]} 29. f4 {[%clk 0:00:26]}  Bd7 {[%clk 0:01:13]} 30. d6 {[%clk 0:00:26]}  Re8 {[%clk 0:01:13]} 31. O-O {[%clk 0:00:24]}  Qxe4 {[%clk 0:01:13]} 32. Qd1 {[%clk 0:00:22]}  Qe3+ {[%clk 0:01:12]} 33. Kh1 {[%clk 0:00:23]}  Kh8 {[%clk 0:01:11]} 34. h3 {[%clk 0:00:19]}  Bxh3 {[%clk 0:01:10]} 35. Qb1 {[%clk 0:00:14]}  Bf5# {[%clk 0:01:10]} 0-1


[Site "https://www.chess.com"]

[Event "Titled Tuesday Blitz August 09 Early 2022"]
[White "Samadov, Read"]
[Black "Eynullayev, Atilla"]
[WhiteFideId "13417444"]
[BlackFideId "13413570"]
[WhiteElo "2084"]
[BlackElo "1936"]
[Result "1-0"]
[Round "02"]
[TimeControl "180+1"]
[Date "2022.08.09"]
[WhiteClock "0:00:51"]
[BlackClock "0:00:09"]

1. d4 {[%clk 0:03:00]}  Nf6 {[%clk 0:03:00]} 2. Nf3 {[%clk 0:03:00]}  d5 {[%clk 0:03:00]} 3. c4 {[%clk 0:02:59]}  e6 {[%clk 0:03:00]} 4. g3 {[%clk 0:02:56]}  Be7 {[%clk 0:03:00]} 5. Bg2 {[%clk 0:02:56]}  O-O {[%clk 0:03:01]} 6. O-O {[%clk 0:02:56]}  dxc4 {[%clk 0:03:01]} 7. Qc2 {[%clk 0:02:56]}  a6 {[%clk 0:03:02]} 8. a4 {[%clk 0:02:55]}  Bd7 {[%clk 0:03:02]} 9. Qxc4 {[%clk 0:02:53]}  Bc6 {[%clk 0:03:03]} 10. Bg5 {[%clk 0:02:53]}  Bd5 {[%clk 0:03:03]} 11. Qc2 {[%clk 0:02:52]}  Be4 {[%clk 0:03:03]} 12. Qc1 {[%clk 0:02:52]}  h6 {[%clk 0:03:01]} 13. Bxf6 {[%clk 0:02:52]}  Bxf6 {[%clk 0:03:02]} 14. Rd1 {[%clk 0:02:53]}  a5 {[%clk 0:03:00]} 15. e3 {[%clk 0:02:52]}  c6 {[%clk 0:02:57]} 16. Nc3 {[%clk 0:02:52]}  Bxf3 {[%clk 0:02:57]} 17. Bxf3 {[%clk 0:02:53]}  Na6 {[%clk 0:02:57]} 18. h4 {[%clk 0:02:52]}  Nb4 {[%clk 0:02:51]} 19. h5 {[%clk 0:02:51]}  Be7 {[%clk 0:02:47]} 20. Ne4 {[%clk 0:02:47]}  Qb6 {[%clk 0:02:47]} 21. Kg2 {[%clk 0:02:40]}  Rac8 {[%clk 0:02:45]} 22. Qc3 {[%clk 0:02:33]}  Nd5 {[%clk 0:02:44]} 23. Qc2 {[%clk 0:02:29]}  c5 {[%clk 0:02:41]} 24. Rac1 {[%clk 0:02:25]}  c4 {[%clk 0:02:40]} 25. Qe2 {[%clk 0:02:17]}  Qb4 {[%clk 0:02:28]} 26. Ra1 {[%clk 0:01:56]}  c3 {[%clk 0:01:45]} 27. bxc3 {[%clk 0:01:52]}  Nxc3 {[%clk 0:01:45]} 28. Nxc3 {[%clk 0:01:52]}  Rxc3 {[%clk 0:01:46]} 29. Rdb1 {[%clk 0:01:48]}  Rb3 {[%clk 0:01:46]} 30. Qc2 {[%clk 0:01:46]}  Rxb1 {[%clk 0:01:08]} 31. Rxb1 {[%clk 0:01:46]}  Qd6 {[%clk 0:00:59]} 32. Rxb7 {[%clk 0:01:45]}  Rb8 {[%clk 0:00:59]} 33. Ra7 {[%clk 0:01:39]}  Qd8 {[%clk 0:00:58]} 34. Qc6 {[%clk 0:01:31]}  Rb6 {[%clk 0:00:47]} 35. Qc3 {[%clk 0:01:22]}  Bb4 {[%clk 0:00:44]} 36. Qc4 {[%clk 0:01:21]}  Rb8 {[%clk 0:00:38]} 37. d5 {[%clk 0:01:21]}  Rc8 {[%clk 0:00:35]} 38. Qg4 {[%clk 0:01:09]}  Qd6 {[%clk 0:00:28]} 39. dxe6 {[%clk 0:01:05]}  Qxe6 {[%clk 0:00:28]} 40. Qxe6 {[%clk 0:00:51]}  fxe6 {[%clk 0:00:28]} 41. Be4 {[%clk 0:00:52]}  Kf8 {[%clk 0:00:09]} 42. Bg6 {[%clk 0:00:52]}  Kg8 {[%clk 0:00:09]} 43. Bf7+ {[%clk 0:00:51]} 1-0


[Site "https://www.chess.com"]